bitfinex-derivatives/quotes_SOLF0:USTF0_20260218
["timestamp","ask_amount","ask_price","bid_price","bid_amount"]
[1771378883960,2.0464334,83.95,83.892,10.7338]
[1771378883961,10.7267,83.949,83.911,35.35616955]
[1771378885763,74.96,83.95,83.923,35.34981842]
[1771378887456,10.7258,83.956,83.923,35.34981842]
[1771378887763,74.96,83.957,83.923,35.34981842]
[1771378888162,10.7246,83.965,83.923,35.34981842]
[1771378888467,74.96,83.964,83.923,35.34981842]
[1771378888964,2.0464334,83.96,83.923,35.34981842]
[1771378891669,10.7246,83.965,83.923,35.34981842]
[1771378891965,2.04387401,83.96,83.923,35.34981842]
[1771378896171,10.7254,83.959,83.923,35.34981842]
[1771378896871,2.04387401,83.97,83.931,32.29403865]
[1771378897360,10.87345335,84.011,83.931,32.29403865]
[1771378897361,2.04387401,83.96,83.931,32.29403865]
[1771378897766,2.04387401,83.96,83.942,0.07999721]
[1771378898370,2.04387401,83.97,83.942,0.07999721]
[1771378898775,10.7241,83.969,83.942,0.07999721]
[1771378899973,10.87345335,84.03,83.962,32.30783181]
[1771378900275,74.96,84.036,83.99,2.04387401]
[1771378900572,74.96,84.037,83.991,30.82762247]
[1771378900771,2.04387401,84.04,83.991,30.82762247]
[1771378901081,9.05839884,84.071,84.011,30.82762247]
[1771378901271,2.04387401,84.08,84.03,2.04387401]
[1771378901476,77.00387401,84.08,84.031,30.82486911]
[1771378901774,74.96,84.081,84.031,30.82486911]
[1771378902072,74.96,84.081,83.964,11.91]
[1771378902073,2.04387401,84.1,84.05,2.04387401]
[1771378902379,2.04387401,84.11,84.061,30.82486911]
[1771378902573,2.04387401,84.12,84.061,30.82486911]
[1771378902872,74.96,84.119,84.061,30.82486911]
[1771378903280,2.04387401,84.12,84.071,29.63078592]
[1771378903976,2.04387401,84.11,84.071,29.63078592]
[1771378904281,2.04387401,84.11,84.087,0.07626974]
[1771378904579,2.04387401,84.1,84.087,0.07626974]
[1771378904976,2.04387401,84.11,84.087,0.07626974]
[1771378905176,2.04387401,84.12,84.087,29.89305703]
[1771378905481,2.04387401,84.11,84.087,29.89305703]
[1771378905680,74.96,84.119,84.087,29.81678729]
[1771378906084,2.04387401,84.12,84.09,0.0783146]
[1771378906579,74.96,84.129,84.09,28.92825806]
[1771378907078,2.04387401,84.13,84.09,28.84994346]
[1771378907278,2.04387401,84.11,84.075,27.82800646]
[1771378907480,2.04387401,84.1,84.075,27.82800646]
[1771378907979,2.04387401,84.11,84.075,27.82800646]
[1771378908877,2.04387401,84.11,84.084,0.07759185]
[1771378909482,2.04387401,84.11,84.084,27.43543093]
[1771378911680,74.96,84.117,84.084,27.43543093]
[1771378911882,2.04387401,84.12,84.084,27.43543093]
[1771378912082,77.00387401,84.12,84.084,27.43543093]
[1771378912684,2.04387401,84.12,84.084,27.43543093]
[1771378912876,2.04387401,84.13,84.084,27.43543093]
[1771378913081,74.96,84.129,84.084,27.43543093]
[1771378913383,74.96,84.129,84.084,27.35783908]
[1771378913779,74.96,84.129,84.08,2.04387401]
[1771378913780,74.96,84.129,84.098,0.07513926]
[1771378914786,2.04387401,84.12,84.098,0.07513926]
[1771378914996,74.96,84.129,84.098,0.07513926]
[1771378915994,74.94,84.129,84.098,0.07513926]
[1771378919096,74.94,84.129,84.099,26.84783431]
[1771378919596,2.04387401,84.13,84.099,26.84783431]
[1771378921597,2.04387401,84.12,84.098,0.07513926]
[1771378921994,2.04387401,84.11,84.098,0.07513926]
[1771378923293,2.04387401,84.11,84.086,26.84998282]
[1771378923495,2.04387401,84.12,84.086,26.84998282]
[1771378923704,74.92,84.119,84.086,26.84998282]
[1771378924302,2.04387401,84.12,84.086,26.84998282]
[1771378925404,2.04387401,84.12,84.095,0.07736577]
[1771378929703,74.9,84.119,84.095,0.07736577]
[1771378931100,2.04387401,84.11,84.074,26.81107819]
[1771378932600,0.07565391,84.1,84.074,26.81107819]
[1771378933406,254.75586867,84.141,84.074,26.81107819]
[1771378933709,10.7037,84.129,84.077,26.89522766]
[1771378934009,74.9,84.128,84.077,26.89522766]
[1771378934801,74.9,84.128,84.094,0.07571688]
[1771378935804,74.9,84.128,84.094,26.9344084]
[1771378936005,10.7037,84.129,84.094,26.9344084]
[1771378936507,10.7027,84.137,84.094,26.9344084]
[1771378936807,74.9,84.136,84.094,26.9344084]
[1771378937308,2.04387401,84.14,84.094,26.9344084]
[1771378937609,2.04387401,84.16,84.101,26.83784673]
[1771378937911,2.04387401,84.15,84.101,26.83784673]
[1771378938112,2.04387401,84.15,84.104,26.83784673]
[1771378938413,74.9,84.158,84.111,26.65536372]
[1771378938610,2.04387401,84.16,84.118,26.65536372]
[1771378939404,74.9,84.16,84.118,26.65536372]
[1771378939612,2.04387401,84.15,84.118,26.65536372]
[1771378940008,2.04387401,84.14,84.117,0.08622032]
[1771378940611,2.04387401,84.14,84.105,26.65165936]
[1771378941014,2.04387401,84.14,84.12,0.08418662]
[1771378941305,2.04387401,84.13,84.077,26.6546803]
[1771378941504,2.04387401,84.1,84.077,26.6546803]
[1771378941708,2.04387401,84.11,84.077,26.6546803]
[1771378941918,2.04387401,84.1,84.077,26.6546803]
[1771378942108,2.04387401,84.11,84.077,26.6546803]
[1771378942417,0.07576004,84.097,84.077,26.6546803]
[1771378943315,2.04387401,84.11,84.077,26.6546803]
[1771378943706,2.04387401,84.1,84.077,26.6546803]
[1771378944114,2.04387401,84.11,84.077,26.6546803]
[1771378945212,2.97310728,84.109,84.077,26.6546803]
[1771378945416,2.04387401,84.1,84.077,26.6546803]
[1771378945817,2.04387401,84.1,84.085,0.07782701]
[1771378948517,2.04387401,84.11,84.085,0.07782701]
[1771378948709,2.97310771,84.109,84.085,0.07782701]
[1771378948912,2.97310771,84.108,84.085,0.07782701]
[1771378949213,2.04387401,84.11,84.085,0.07782701]
[1771378949414,2.97299142,84.109,84.085,0.07782701]
[1771378949620,2.97299142,84.108,84.085,0.07782701]
[1771378949916,2.04387401,84.11,84.085,0.07782701]
[1771378950117,2.97299142,84.109,84.085,0.07782701]
[1771378950313,74.9,84.12,84.085,0.07782701]
[1771378950314,2.04387401,84.1,84.085,0.07782701]
[1771378951018,2.04387401,84.09,84.059,26.32479063]
[1771378952422,0.08836789,84.083,84.059,26.32479063]
[1771378953020,2.04387401,84.1,84.059,26.32479063]
[1771378953318,2.04387401,84.1,84.048,10.7139]
[1771378953319,2.97339857,84.099,84.064,26.31486907]
[1771378953520,2.04387401,84.09,84.064,26.31486907]
[1771378953720,2.04387401,84.1,84.064,26.31486907]
[1771378954017,2.0371901,84.1,84.064,26.31486907]
[1771378954723,2.0371901,84.1,84.074,0.08075288]
[1771378956217,2.0371901,84.1,84.074,26.37546858]
[1771378956419,2.0371901,84.11,84.074,26.37546858]
[1771378960529,2.0371901,84.1,84.074,26.37546858]
[1771378962032,2.0371901,84.11,84.074,26.37546858]
[1771378963133,2.0371901,84.12,84.074,26.37546858]
[1771378963330,2.0371901,84.11,84.074,26.37546858]
[1771378963734,2.0371901,84.11,84.074,26.2947157]
[1771378964229,2.0371901,84.11,84.084,0.08612207]
[1771378964627,2.0371901,84.12,84.084,0.08612207]
[1771378965026,2.0371901,84.13,84.085,26.25565167]
[1771378965228,2.0371901,84.12,84.085,26.25565167]
[1771378965436,2.0371901,84.13,84.085,26.25565167]
[1771378965833,10.7037,84.129,84.085,26.25565167]
[1771378966033,10.7037,84.129,84.099,0.08037943]
[1771378966539,2.0371901,84.12,84.099,0.08037943]
[1771378969242,2.0371901,84.13,84.099,26.25121245]
[1771378969538,2.0371901,84.12,84.099,0.08037943]
[1771378969744,2.0371901,84.11,84.087,26.17083302]
[1771378970239,2.0371901,84.11,84.101,0.07867464]
[1771378970442,2.0371901,84.11,84.074,26.17825556]
[1771378970642,2.0371901,84.1,84.074,26.17825556]
[1771378971033,2.0371901,84.11,84.074,26.17825556]
[1771378972136,12.11034527,84.123,84.074,26.17825556]
[1771378972341,2.0371901,84.13,84.074,26.17825556]
[1771378973750,2.0371901,84.13,84.07,2.0371901]
[1771378973751,2.0371901,84.13,84.095,26.21681547]
[1771378975057,2.0371901,84.14,84.095,26.21681547]
[1771378976059,2.0371901,84.14,84.109,26.20821872]
[1771378976657,2.0371901,84.15,84.109,26.20821872]
[1771378977258,2.0371901,84.15,84.109,26.12385289]
[1771378978361,2.0371901,84.15,84.121,0.08017469]
[1771378981855,2.0371901,84.15,84.122,26.10632399]
[1771378982563,2.0371901,84.17,84.122,26.10632399]
[1771378982763,2.0371901,84.18,84.122,26.10632399]
[1771378982964,2.0371901,84.18,84.13,2.0371901]
[1771378983161,2.0371901,84.18,84.075,35.72]
[1771378983162,2.0371901,84.19,84.141,26.108528]
[1771378983664,12.01094981,84.209,84.151,26.10607755]
[1771378983867,12.01094981,84.209,84.157,0.08657666]
[1771378984167,2.97065529,84.208,84.157,0.08657666]
[1771378984369,2.97065529,84.207,84.151,26.10607755]
[1771378984559,2.97065529,84.206,84.151,26.10607755]
[1771378984757,10.6955,84.194,84.151,26.10607755]
[1771378984963,10.6955,84.194,84.16,2.0371901]
[1771378985159,10.6955,84.194,84.17,0.08540985]
[1771378985957,10.6955,84.194,84.12,74.88]
[1771378985958,10.6968,84.184,84.141,25.97254171]
[1771378986162,10.6968,84.184,84.15,2.0371901]
[1771378986871,10.6957,84.192,84.15,2.0371901]
[1771378987265,0.07541009,84.175,84.15,2.0371901]
[1771378987465,0.07541009,84.175,84.141,25.97254171]
[1771378987466,0.07541009,84.175,84.16,2.0371901]
[1771378987661,10.6957,84.192,84.16,2.0371901]
[1771378987870,10.6957,84.192,84.152,25.98800755]
[1771378991871,10.6957,84.192,84.164,0.07509976]
[1771379000570,2.0371901,84.2,84.164,0.07509976]
[1771379000771,35.72,84.234,84.14,25.83816196]
[1771379000772,2.0371901,84.19,84.14,27.87535206]
[1771379000973,0.08571518,84.186,84.14,27.87535206]
[1771379001577,10.6978,84.175,84.14,27.87535206]
[1771379001780,10.6978,84.175,84.14,25.83816196]
[1771379002989,0.07815152,84.166,84.14,25.83816196]
[1771379004182,0.07815152,84.166,84.13,2.0371901]
[1771379004183,0.07815152,84.166,84.131,26.00723206]
[1771379006491,10.6992,84.165,84.131,26.00723206]
[1771379008395,10.7,84.159,84.12,28.09588506]
[1771379009485,0.07608047,84.148,84.12,28.09588506]
[1771379011097,0.07608047,84.148,84.11,2.0371901]
[1771379011594,2.0371901,84.16,84.109,26.09655215]
[1771379011984,2.0371901,84.15,84.1,2.0371901]
[1771379012587,2.0371901,84.15,84.1,28.27287017]
[1771379012788,10.7023,84.14,84.1,28.27287017]
[1771379013593,2.0371901,84.15,84.1,26.23568007]
[1771379013594,10.7034,84.132,84.1,26.23568007]
[1771379013794,0.07984779,84.128,84.1,26.23568007]
[1771379014199,0.07984779,84.128,84.1,28.27119688]
[1771379017702,2.97204212,84.156,84.11,2.03551681]
[1771379017903,11.98818864,84.182,84.14,2.03551681]
[1771379018104,2.03551681,84.18,84.131,26.14413594]
[1771379018408,2.97164413,84.179,84.12,28.10291599]
[1771379018610,74.86,84.194,84.12,28.10291599]
[1771379018611,2.03551681,84.17,84.12,26.06739918]
[1771379018905,2.97164413,84.169,84.12,28.10291599]
[1771379019112,10.87765337,84.212,84.15,1.681e-05]
[1771379019405,10.87765337,84.212,84.137,0.07652216]
[1771379019406,2.03551681,84.2,84.14,2.03551681]
[1771379019606,11.97356537,84.199,84.14,2.03551681]
[1771379019801,11.97356537,84.198,84.14,2.03551681]
[1771379020002,11.97356537,84.197,84.14,2.03551681]
[1771379020201,2.03551681,84.19,84.14,2.03551681]
[1771379020402,11.97356537,84.189,84.14,2.03551681]
[1771379020608,11.97356537,84.188,84.161,0.08211393]
[1771379020811,10.6978,84.176,84.161,0.08211393]
[1771379021310,10.87765337,84.21,84.161,0.08211393]
[1771379021311,11.97356537,84.185,84.161,0.08211393]
[1771379021508,10.6964,84.187,84.161,0.08211393]
[1771379023411,10.6952,84.196,84.161,26.03271559]
[1771379025805,13.66417965,84.206,84.161,26.03271559]
[1771379026112,2.97027965,84.205,84.161,26.03271559]
[1771379026309,74.86,84.208,84.161,26.03271559]
[1771379026513,2.97028001,84.207,84.161,26.03271559]
[1771379026708,2.97028001,84.206,84.161,26.03271559]
[1771379026910,2.97028001,84.205,84.161,26.03271559]
[1771379027211,2.97028015,84.204,84.161,26.03271559]
[1771379027405,10.6912,84.228,84.171,25.9373726]
[1771379027601,11.98516264,84.227,84.18,2.03551681]
[1771379027806,11.98516264,84.226,84.171,25.9373726]
[1771379028009,2.03551681,84.22,84.171,25.9373726]
[1771379028207,2.03551681,84.22,84.16,2.03551681]
[1771379028208,2.03551681,84.21,84.158,25.9373726]
[1771379028415,2.96987421,84.209,84.158,25.9373726]
[1771379028614,2.97022558,84.208,84.171,25.96762275]
[1771379028806,2.03551681,84.22,84.171,25.96762275]
[1771379029007,11.98320256,84.219,84.171,25.96762275]
[1771379029207,11.98320256,84.218,84.171,25.96762275]
[1771379029403,11.98320256,84.217,84.171,25.96762275]
[1771379029611,2.97015771,84.216,84.171,25.96762275]
[1771379029817,2.97015771,84.215,84.171,25.96762275]
[1771379030113,2.97015771,84.214,84.171,25.96762275]
[1771379030314,10.6926,84.217,84.171,25.96762275]
[1771379030511,10.6928,84.215,84.185,0.07486445]
[1771379030716,2.97010084,84.214,84.185,0.07486445]
[1771379030909,10.6928,84.215,84.185,0.07486445]
[1771379031117,2.97010401,84.214,84.185,0.07486445]
[1771379031413,9.01808646,84.219,84.185,0.07486445]
[1771379031609,2.97010038,84.218,84.185,0.07486445]
[1771379031816,2.97010038,84.217,84.185,0.07486445]
[1771379032010,2.97010038,84.216,84.185,0.07486445]
[1771379032317,2.03551681,84.22,84.185,0.07486445]
[1771379032518,2.03551681,84.21,84.185,0.07486445]
[1771379033711,14.53045592,84.257,84.159,26.06587961]
[1771379033712,2.03551681,84.2,84.159,26.06587961]
[1771379034613,2.03551681,84.19,84.159,26.06587961]
[1771379034803,2.03551681,84.2,84.159,26.06587961]
[1771379035207,0.07883179,84.188,84.159,26.06587961]
[1771379038505,0.07883179,84.188,84.16,2.03551681]
[1771379038709,0.07883179,84.188,84.161,26.1224379]
[1771379040319,0.07883179,84.188,84.15,2.03551681]
[1771379040320,0.07883179,84.188,84.17,28.15041778]
[1771379040719,0.07883179,84.188,84.16,2.03551681]
[1771379040915,0.07883179,84.188,84.16,28.15041778]
[1771379041118,74.84,84.205,84.16,28.15041778]
[1771379041813,10.6954,84.195,84.16,28.15041778]
[1771379043720,0.07757783,84.186,84.16,28.15041778]
[1771379045723,10.77407783,84.186,84.15,2.03551681]
[1771379045925,10.77407783,84.186,84.151,26.09606748]
[1771379046319,10.6952,84.197,84.161,26.09606748]
[1771379049729,10.6952,84.197,84.171,0.07624417]
[1771379050932,10.6952,84.197,84.161,26.09606748]
[1771379051130,10.6962,84.188,84.152,26.10700008]
[1771379061231,10.6968,84.184,84.152,26.10700008]
[1771379061832,10.6959,84.191,84.152,26.10700008]
[1771379062241,74.84,84.19,84.152,26.10700008]
[1771379062535,10.6962,84.188,84.152,26.10700008]
[1771379064332,74.84,84.255,84.181,26.15404759]
[1771379064535,86.82592082,84.252,84.201,20.70648005]
[1771379064743,10.6902,84.235,84.201,20.70648005]
[1771379064938,2.96931371,84.234,84.201,20.70648005]
[1771379065240,2.96931371,84.233,84.201,20.70648005]
[1771379065445,2.96931371,84.232,84.201,20.70648005]
[1771379065641,10.6902,84.235,84.201,20.70648005]
[1771379065842,2.96917963,84.234,84.201,20.70648005]
[1771379066141,2.96917963,84.233,84.208,0.07843667]
[1771379066328,10.6902,84.235,84.208,0.07843667]
[1771379066329,74.84,84.232,84.208,0.07843667]
[1771379068441,2.03551681,84.23,84.208,0.07843667]
[1771379068649,74.84,84.229,84.188,20.30006891]
[1771379069042,74.84,84.229,84.19,2.03551681]
[1771379069243,74.84,84.229,84.191,20.30006891]
[1771379069945,0.07924837,84.218,84.191,20.30006891]
[1771379070943,74.84,84.217,84.191,20.30006891]
[1771379072040,0.07924837,84.218,84.191,20.30006891]
[1771379072246,74.82,84.217,84.191,20.30006891]
[1771379073553,0.07924837,84.218,84.191,20.30006891]
[1771379073853,74.82,84.217,84.191,20.30006891]
[1771379077750,10.6907,84.232,84.191,20.30006891]
[1771379078050,14.57674132,84.277,84.177,10.6976]
[1771379078051,74.82,84.231,84.201,20.36272565]
[1771379078252,74.82,84.23,84.201,20.36272565]
[1771379078455,74.82,84.229,84.201,20.36272565]
[1771379078650,74.82,84.232,84.201,20.36272565]
[1771379079061,74.82,84.231,84.201,20.36272565]
[1771379079650,74.82,84.231,84.21,2.03105219]
[1771379079845,2.96858089,84.256,84.21,2.03105219]
[1771379080056,74.82,84.255,84.21,2.03105219]
[1771379080252,102.57931325,84.255,84.21,2.03105219]
[1771379080654,16.9109548,84.254,84.21,2.03105219]
[1771379080951,2.03105219,84.25,84.208,0.07646061]
[1771379081156,2.03105219,84.24,84.208,0.07646061]
[1771379081349,2.03105219,84.25,84.208,0.07646061]
[1771379081557,18.95352239,84.25,84.208,0.07646061]
[1771379081861,91.7424702,84.249,84.208,0.07646061]
[1771379085354,91.7424702,84.249,84.209,10.6934]
[1771379085560,91.7424702,84.249,84.208,0.07646061]
[1771379088160,17.05105132,84.248,84.208,0.07646061]
[1771379088364,2.03105219,84.24,84.208,0.07646061]
[1771379088562,74.82,84.249,84.216,10.6925]
[1771379088862,17.06062768,84.24,84.208,0.07646061]
[1771379089464,17.06062768,84.24,84.19,2.03105219]
[1771379089868,17.06062768,84.24,84.216,0.0805385]
[1771379090164,74.8,84.248,84.216,0.0805385]
[1771379090561,17.42579537,84.247,84.216,0.0805385]
[1771379091067,74.8,84.246,84.216,0.0805385]
[1771379091561,74.8,84.246,84.217,10.6924]
[1771379091762,74.8,84.245,84.217,10.6924]
[1771379092063,10.686,84.269,84.217,10.6924]
[1771379092064,74.8,84.249,84.217,10.6924]
[1771379093364,74.8,84.258,84.229,10.6909]
[1771379093767,74.8,84.258,84.225,0.07492939]
[1771379093968,74.8,84.258,84.22,2.03105219]
[1771379094358,74.8,84.258,84.236,10.6901]
[1771379094757,17.46320665,84.257,84.233,0.08050074]
[1771379094957,2.03105219,84.25,84.233,0.08050074]
[1771379095262,2.03105219,84.25,84.219,10.6922]
[1771379096467,0.08408944,84.243,84.219,10.6922]
[1771379096764,2.03105219,84.24,84.219,10.6922]
[1771379098365,2.03105219,84.24,84.19,2.03105219]
[1771379098675,2.03105219,84.23,84.208,10.6936]
[1771379099276,0.08523463,84.227,84.208,10.6936]
[1771379100369,0.08523463,84.227,84.198,10.6949]
[1771379100775,0.08523463,84.227,84.19,12.72695219]
[1771379101075,0.08523463,84.227,84.19,2.03105219]
[1771379102372,0.08523463,84.227,84.197,10.695]
[1771379105072,2.03105219,84.24,84.197,10.695]
[1771379105273,74.8,84.242,84.204,0.07508872]
[1771379105882,10.687,84.261,84.204,0.07508872]
[1771379105883,16.94458325,84.276,84.212,10.6931]
[1771379106081,2.03105219,84.24,84.204,0.07508872]
[1771379106471,2.03105219,84.24,84.19,2.03105219]
[1771379106877,2.03105219,84.24,84.214,0.07556828]
[1771379107681,76.83105219,84.24,84.214,0.07556828]
[1771379108078,2.03105219,84.23,84.163,80.16]
[1771379108283,2.03105219,84.23,84.159,183.47316535]
[1771379108284,2.03105219,84.23,84.18,2.03105219]
[1771379109582,0.07627684,84.213,84.18,2.03105219]
[1771379109785,0.07627684,84.213,84.193,10.6955]
[1771379111375,0.07627684,84.213,84.201,10.6945]
[1771379113082,2.03105219,84.23,84.201,10.6945]
[1771379113781,2.03105219,84.23,84.199,0.08526939]
[1771379114085,2.03105219,84.22,84.199,0.08526939]
[1771379114483,16.641664,84.229,84.199,0.08526939]
[1771379114684,16.641664,84.229,84.17,2.03105219]
[1771379114988,16.66150806,84.234,84.206,0.07519715]
[1771379115482,16.66150806,84.234,84.18,2.03105219]
[1771379116491,16.66150806,84.234,84.199,0.08260364]
[1771379116683,16.66150806,84.234,84.207,10.6938]
[1771379118786,2.03105219,84.24,84.214,10.6928]
[1771379119391,2.03105219,84.24,84.18,2.03105219]
[1771379119587,2.03105219,84.24,84.213,10.693]
[1771379119790,2.03105219,84.24,84.219,0.0820931]
[1771379123690,18.52212758,84.24,84.189,10.696]
[1771379126302,0.07565578,84.223,84.189,10.696]
[1771379127501,0.07565578,84.223,84.18,2.03105219]
[1771379127502,0.07565578,84.223,84.195,10.6953]
[1771379129406,16.56709083,84.255,84.2,2.03105219]
[1771379129601,74.8,84.257,84.2,2.03105219]
[1771379129796,16.60491872,84.265,84.21,2.03105219]
[1771379130001,21.86511198,84.309,84.174,35.67]
[1771379130002,16.60491872,84.276,84.22,2.03105219]
[1771379130704,2.03105219,84.28,84.22,2.03105219]
[1771379131009,18.54017829,84.28,84.24,0.07918609]
[1771379131506,2.03105219,84.26,84.24,0.07918609]
[1771379132010,2.03105219,84.26,84.227,10.6912]
[1771379132011,18.54528574,84.25,84.212,10.693]
[1771379132909,2.03105219,84.25,84.219,10.6921]
[1771379133109,2.03105219,84.26,84.219,10.6921]
[1771379133310,2.03105219,84.26,84.21,2.03105219]
[1771379133811,0.07615732,84.248,84.21,2.03105219]
[1771379134811,0.07615732,84.248,84.226,10.6913]
[1771379137312,0.07615732,84.248,84.233,10.6905]
[1771379137914,2.0294555,84.26,84.233,10.6905]
[1771379138715,0.08319158,84.255,84.233,10.6905]
[1771379140114,2.0294555,84.25,84.193,21.3912]
[1771379141107,0.07915162,84.23,84.193,21.3912]
[1771379141307,0.07915162,84.23,84.21,10.6933]
[1771379143122,2.0294555,84.25,84.21,10.6933]
[1771379143524,2.0294555,84.25,84.212,0.07700058]
[1771379143917,16.62355205,84.25,84.212,0.07700058]
[1771379144121,16.62355205,84.239,84.212,0.07700058]
[1771379144717,16.62355205,84.239,84.203,10.6943]
[1771379146621,0.07653699,84.229,84.203,10.6943]
[1771379149622,0.07653699,84.229,84.171,74.78]
[1771379149826,0.07653699,84.229,84.155,65.2156183]
[1771379149827,16.78389157,84.229,84.193,10.6955]
[1771379150028,2.0294555,84.22,84.193,10.6955]
[1771379150918,0.0825748,84.215,84.193,10.6955]
[1771379151119,0.0825748,84.215,84.199,10.6947]
[1771379154327,0.0825748,84.215,84.206,10.6938]
[1771379154531,0.0825748,84.215,84.206,8.64007306]
[1771379155330,0.0825748,84.215,84.195,10.6952]
[1771379156525,0.0825748,84.215,84.151,29.5456183]
[1771379156526,2.0294555,84.21,84.185,10.6965]
[1771379156729,0.0825748,84.215,84.185,10.6965]
[1771379157224,16.88376601,84.219,84.185,10.6965]
[1771379157424,18.91714469,84.23,84.18,2.0294555]
[1771379157629,21.365,84.296,84.19,2.0294555]
[1771379157630,2.0294555,84.24,84.19,2.0294555]
[1771379158130,2.0294555,84.24,84.18,2.0294555]
[1771379158330,2.0294555,84.24,84.197,10.6949]
[1771379159130,2.0294555,84.24,84.21,0.08175664]
[1771379161325,2.0294555,84.23,84.21,0.08175664]
[1771379161530,18.84627515,84.23,84.187,10.6962]
[1771379162031,0.08152196,84.233,84.187,10.6962]
[1771379162422,0.08152196,84.233,84.2,2.0294555]
[1771379162928,2.0294555,84.25,84.2,2.0294555]
[1771379163123,2.0294555,84.26,84.21,2.0294555]
[1771379163932,2.0294555,84.27,84.22,2.0294555]
[1771379164735,18.54690614,84.26,84.213,10.6929]
[1771379165629,18.54690614,84.26,84.228,0.07716431]
[1771379165829,16.51745064,84.26,84.228,0.07716431]
[1771379166343,18.54690614,84.26,84.228,0.07716431]
[1771379166926,16.50422258,84.249,84.228,0.07716431]
[1771379167436,16.50422258,84.249,84.189,74.8]
[1771379167631,16.50422258,84.249,84.19,2.0294555]
[1771379167831,16.50422258,84.249,84.204,10.6941]
[1771379170233,16.50422258,84.249,84.21,10.6933]
[1771379171042,16.54119473,84.229,84.18,2.0294555]
[1771379171232,16.54119473,84.229,84.17,2.0294555]
[1771379171432,16.54119473,84.229,84.18,2.0294555]
[1771379172330,16.54119473,84.229,84.191,10.6957]
[1771379172528,16.54119473,84.229,84.18,2.0294555]
[1771379172827,16.54119473,84.229,84.19,2.0294555]
[1771379173027,16.54119473,84.229,84.18,2.0294555]
[1771379173228,0.07532814,84.213,84.18,2.0294555]
[1771379173729,0.07532814,84.213,84.183,10.6968]
[1771379173929,0.07532814,84.213,84.17,2.0294555]
[1771379174332,2.0294555,84.22,84.17,2.0294555]
[1771379174533,16.54119473,84.229,84.18,2.0294555]
[1771379174942,16.54119473,84.229,84.187,0.07946414]
[1771379175241,16.54119473,84.229,84.189,10.696]
[1771379176745,16.54119473,84.229,84.196,10.6952]
[1771379177646,16.54119473,84.229,84.204,0.07522497]
[1771379178148,16.54119473,84.229,84.188,10.6962]
[1771379178739,18.47647477,84.22,84.188,10.6962]
[1771379179442,16.44701927,84.22,84.188,10.6962]
[1771379179836,16.44701927,84.22,84.146,11.87]
[1771379179837,16.44701927,84.22,84.177,10.6975]
[1771379180042,18.47647477,84.22,84.17,2.0294555]
[1771379181045,0.07757564,84.203,84.17,2.0294555]
[1771379181748,0.07757564,84.203,84.188,10.6961]
[1771379187351,0.07757564,84.203,84.17,2.0294555]
[1771379187755,0.07757564,84.203,84.16,2.0294555]
[1771379188343,0.07757564,84.203,84.172,10.6981]
[1771379200551,16.4005473,84.202,84.162,10.6994]
[1771379200761,0.07757564,84.203,84.151,80.0]
[1771379200762,16.4005473,84.199,84.151,80.0]
[1771379200961,16.4005473,84.199,84.152,80.0]
[1771379201262,2.03155137,84.19,84.152,80.0]
[1771379201854,16.4005473,84.199,84.152,80.0]
[1771379202655,0.07933262,84.184,84.145,10.7016]
[1771379202856,16.46590499,84.184,84.146,80.1]
[1771379203056,16.38657237,84.179,84.128,80.1]
[1771379203253,16.38657237,84.179,84.13,2.03155137]
[1771379203455,16.38457568,84.176,84.122,10.7045]
[1771379203658,16.38457568,84.176,84.123,80.12]
[1771379204161,16.38457568,84.176,84.122,10.7045]
[1771379204354,16.38457568,84.176,84.13,2.03155137]
[1771379204559,16.38457568,84.176,84.087,11.87]
[1771379204560,16.38457568,84.176,84.14,2.03155137]
[1771379204861,16.37872857,84.187,84.14,2.03155137]
[1771379205663,16.37872857,84.187,84.141,10.7022]
[1771379207069,0.07571654,84.172,84.141,10.7022]
[1771379208970,10.6956,84.193,84.148,0.07601995]
[1771379209366,16.40330189,84.199,84.148,0.07601995]
[1771379209867,16.40330189,84.199,84.141,10.7022]
[1771379210269,16.40330189,84.199,84.165,0.08338948]
[1771379215172,16.3339202,84.189,84.165,0.08338948]
[1771379220669,2.96998546,84.222,84.107,11.87]
[1771379220670,16.24713342,84.179,84.139,10.7024]
[1771379221270,16.24713342,84.169,84.12,2.03155137]
[1771379222077,0.07595693,84.153,84.12,2.03155137]
[1771379222666,0.07595693,84.153,84.121,10.7046]
[1771379223773,16.28476766,84.153,84.12,2.03155137]
[1771379225382,16.20797298,84.148,84.096,10.7078]
[1771379226383,0.07982317,84.13,84.096,10.7078]
[1771379226581,0.07982317,84.13,84.103,10.707]
[1771379227880,16.28974214,84.13,84.095,10.7079]
[1771379228473,16.20991897,84.13,84.095,10.7079]
[1771379228674,16.20991897,84.13,84.09,2.03155137]
[1771379228976,0.07984935,84.121,84.087,10.709]